Cogmind - Beta 15 @@@ ROGUE MODE // 2025.09.21 @ 09:01:32 Player: Genericgamer16 Result: Destroyed by P-60 Hacker with Shock Rifle Performance ------------- Evolutions (3) 1500 Regions Visited (4) 800 Robots Destroyed (26) 130 Value Destroyed (889) 889 Prototype IDs (1) 20 Alien Tech Used (0) 0 Bonus (0) 0 TOTAL SCORE: 3339 Bonus ------- None Cogmind --------- Core Integrity 0/700 Matter 74/300 Energy 98/100 System Corruption 6% Temperature Cool (0) Movement Core (50) Location -7/Factory Parts ------- > --- POWER (1) -------- (None) > --- PROPULSION (4) --- (None) > --- UTILITY (6) ------ Transmission Jammer > --- WEAPON (2) ------- (None) > --- INVENTORY (5) ---- Small Storage Unit Plasma Cannon Peak State ------------ > --- POWER ------------ Light Nuclear Core > --- PROPULSION ------- Aluminum Leg Aluminum Leg Aluminum Leg Aluminum Leg > --- UTILITY ---------- Medium Storage Unit Structural Scanner Improved Sensor Array Improved Signal Interpreter Advanced ECM Suite Corruption Screen > --- WEAPON ----------- High-powered Shotgun Flak Cannon > --- INVENTORY -------- Light Deuterium Engine Light Nuclear Core Cesium-ion Thruster Small Storage Unit Advanced Weight Redist. System Transmission Jammer Shock Absorption System Riot Gun Gauss Rifle Remote Datajack [Rating: 32] Favorites ----------- Power Light Nuclear Core Engine Subdweller Power Source Power Core Light Nuclear Core Propulsion Aluminum Leg Leg Aluminum Leg Hover Unit Gravmag System Flight Unit Cesium-ion Thruster Utility Structural Scanner Device Structural Scanner Storage Small Storage Unit Processor Improved Signal Interpreter Weapon Flak Cannon Energy Gun Riot Gun Energy Cannon EM Pulse Cannon Ballistic Gun High-powered Shotgun Ballistic Cannon Flak Cannon Launcher Advanced EMP Blaster Special Weapon Remote Datajack Build | -11 -10 -10 -8 -7 ------- Run | Yrd Mat Sub Mat Fac Slots Evolved 6 | . . . 4 2 Power . | . . . . . Propulsion 2 | . . . 2 . Utility 4 | . . . 2 2 Weapon . | . . . . . Parts Attached 46 | 7 7 4 8 20 Power 8 | 1 1 1 1 4 Engine 3 | 1 . 1 . 1 Core 5 | . 1 . 1 3 Reactor . | . . . . . Propulsion 9 | 2 2 . 3 2 Treads . | . . . . . Leg 7 | 2 2 . 3 . Wheel . | . . . . . Hover 1 | . . . . 1 Flight 1 | . . . . 1 Utility 12 | 1 1 1 3 6 Device 7 | . 1 1 1 4 Storage 3 | 1 . . 1 1 Processor 2 | . . . 1 1 Hackware . | . . . . . Protection . | . . . . . Artifact . | . . . . . Weapon 17 | 3 3 2 1 8 Energy Gun 4 | . 2 1 . 1 Energy Cannon 2 | . . . . 2 Ballistic Gun 5 | 3 . . . 2 Ballistic Cannon 2 | . . 1 1 . Launcher 2 | . . . . 2 Special Weapon 2 | . 1 . . 1 Impact Weapon . | . . . . . Slashing Weapon . | . . . . . Piercing Weapon . | . . . . . Special Melee Weapon . | . . . . . Unidentified Prototypes 1 | . . . . 1 Corrupted Parts 1 | . . . . 1 System Corruption 1 | . . . . 1 Parts Lost 31 | . 3 1 . 27 Power 6 | . . 1 . 5 Propulsion 7 | . 1 . . 6 Utility 9 | . 1 . . 8 Weapon 9 | . 1 . . 8 Highest Loss Streak 10 | . 3 1 . 10 To Critical Strikes . | . . . . . Average Backups 7 | 3 7 7 7 7 Power 1 | . 1 1 1 1 Propulsion 2 | 2 5 4 2 . Utility 1 | . . . 1 3 Weapon 1 | . 1 1 1 1 Tool/Special . | . . . . . Unused Backups 11 | . 2 3 6 . Power 2 | . 1 . 1 . Propulsion 5 | . 1 2 2 . Utility 2 | . . . 2 . Weapon 2 | . . 1 1 . Tool/Special . | . . . . . Average Slot Usage (%) 87 | . 91 94 97 77 Engine 4 | . 6 10 4 . Core 4 | . 7 2 4 4 Leg 26 | . 27 28 35 20 Device 14 | . 7 11 17 16 Storage 9 | . 14 14 9 6 Processor 7 | . . . 8 12 Energy Gun 4 | . 3 18 2 . Ballistic Gun 6 | . 22 . . 5 Ballistic Cannon 7 | . . 9 15 5 Peak Build Rating 32 | 6 10 12 22 32 Average Rating 18 | 4 7 11 20 25 On Entrance 10 | . 6 10 12 22 Naked Turns . | . . . . . Heaviest Build 29 | 14 16 17 21 29 Greatest Support 40 | 20 20 20 40 40 Greatest Overweight (x) 9 | . 1 . . 9 Average Overweight (x) . | . . . . . Largest Inventory Capacity 10 | 8 8 8 8 10 Average Capacity 8 | 7 8 8 8 9 Most Carried 10 | 7 8 8 8 10 Average Carried 7 | 4 7 7 7 7 Final Capacity 8 | 8 8 8 8 5 Final Carried 8 | 6 8 8 8 2 Class Distribution -------------------- 49% | Mutant 25% | Skirmisher 22% | Infiltrator-Skirmisher Dominant Class ---------------- Mutant | -10/Materials Mutant | -10/Subcaves Skirmisher | -8/Materials Infiltrator-Skirmisher | -7/Factory Resources | -11 -10 -10 -8 -7 ----------- Run | Yrd Mat Sub Mat Fac Matter Collected 1030 | 250 127 111 206 336 Remotely . | . . . . . Salvage Created 741 | . 170 44 280 247 Parts 45 | . 10 . 18 17 Haulers Intercepted 1 | . . . 1 . Recyclers Shooed 1 | . . . . 1 Parts Field Recycled . | . . . . . Retrieved Matter . | . . . . . Parts Self-Destructed . | . . . . . Prevented . | . . . . . Kills | -11 -10 -10 -8 -7 ------- Run | Yrd Mat Sub Mat Fac Combat Hostiles Destroyed 17 | . 5 2 5 5 Guns 9 | . 4 2 . 3 Cannons 8 | . 1 . 5 2 Classes Destroyed 12 | . 1 1 4 6 Worker 3 | . . . . 3 Tunneler 1 | . . . . 1 Hauler 1 | . . . 1 . Recycler 2 | . . . 1 1 Operator 1 | . . . . 1 Watcher 1 | . . . . 1 Grunt 9 | . 5 . 3 1 Duelist 1 | . . . . 1 Sentry 1 | . . . 1 . Hunter 1 | . . . 1 . Programmer 3 | . . . . 3 Subdweller 2 | . . 2 . . Best Kill Streak 6 | . 1 2 3 6 Combat Bots Only 3 | . 1 2 3 2 Max Kills in Single Turn 1 | . 1 1 1 1 Gunslinging . | . . . . . Exploded . | . . . . . Melee . | . . . . . Uniques/NPCs Destroyed . | . . . . . Combat | -11 -10 -10 -8 -7 -------- Run | Yrd Mat Sub Mat Fac Hostile Shots Fired 435 | . 34 20 14 367 Missed 161 | . 6 6 4 145 Hits 274 | . 28 14 10 222 Melee 2 | . . . . 2 Projectile 272 | . 28 14 10 220 Critical Strikes 14 | . 1 1 . 12 Part Disruptions 1 | . . . . 1 Damage Taken 3380 | . 389 275 145 2571 Core 925 | . 73 84 60 708 Absorbed by Shields . | . . . . . Core Remaining (%) 75 | 100 . 37 89 . Volleys Fired 107 | . 25 11 26 45 Largest 2 | . 2 2 2 2 Hottest 130 | . 120 130 70 126 Shots Fired 196 | . 46 22 45 83 Gun 97 | . 40 20 . 37 Cannon 88 | . . 2 45 41 Launcher 5 | . . . . 5 Special 6 | . 6 . . . Kinetic 159 | . 40 2 45 72 Thermal 24 | . 6 18 . . Explosive 1 | . . . . 1 Electromagnetic 12 | . . 2 . 10 Robot Hit Streak 7 | . 6 6 7 6 Robot Miss Streak 14 | . 2 1 11 14 Penetration Max . | . . . . . Secondary Targets . | . . . . . Shots Hit Robots 123 | . 29 14 25 55 Core Hits 85 | . 12 4 18 51 Critical Kills . | . . . . . Critical Parts Destroyed 1 | . . . . 1 Critical Strikes 2 | . . . 1 1 Destroy 1 | . . . . 1 Blast 1 | . . . 1 . Melee Attacks . | . . . . . Impact . | . . . . . Slashing . | . . . . . Piercing . | . . . . . Sneak Attacks . | . . . . . Combat Hostiles . | . . . . . Follow-up Attacks . | . . . . . Damage Inflicted 2349 | . 387 214 370 1378 Guns 1006 | . 315 214 . 477 Cannons 988 | . . . 370 618 Explosions 279 | . . . . 279 Melee . | . . . . . Ramming 4 | . . . . 4 Kinetic 1715 | . 315 . 370 1030 Thermal 286 | . 72 214 . . Explosive 178 | . . . . 178 Electromagnetic 166 | . . . . 166 Impact . | . . . . . Slashing . | . . . . . Piercing . | . . . . . Highest Corruption 6 | . . . . 6 Average Corruption 3 | . . . . 3 Corruption Purged . | . . . . . Corruption Blocked 4 | . . . . 4 Effects 4 | . . . . 4 Heat Flow Errors 1 | . . . . 1 Parts Rejected 1 | . . . . 1 Data Loss (major) 2 | . . . . 2 Overload Shots . | . . . . . Overflow Damage 75 | . . . . 75 Projectiles . | . . . . . Explosions 75 | . . . . 75 Melee . | . . . . . Knockbacks 35 | . . . 10 25 Impact . | . . . . . Kinetic 33 | . . . 9 24 Secondary 2 | . . . 1 1 Self-Inflicted Damage 191 | . . . . 191 Shots 4 | . . . . 4 Rammed 4 | . . . . 4 Targets Rammed 4 | . . . . 4 Kicked . | . . . . . Crushed . | . . . . . Highest Temperature 291 | . 291 125 9 109 Average Temperature 100 | . 157 61 4 27 Received Heat Transfer 714 | . 246 102 45 321 Siege Activations . | . . . . . Martial Activations . | . . . . . Shielding Activations . | . . . . . Robots Disrupted . | . . . . . Combat Hostiles . | . . . . . Robots Corrupted . | . . . . . Combat Hostiles . | . . . . . Parts Fried . | . . . . . Impact Corruptions . | . . . . . Robots Melted . | . . . . . Combat Hostiles . | . . . . . Parts Melted 2 | . . 2 . . Heat Transferred 668 | . 150 518 . . Parts Sabotaged . | . . . . . Parts Stolen . | . . . . . Parts Stripped . | . . . . . Power Chain Reactions . | . . . . . Alert | -11 -10 -10 -8 -7 ------- Run | Yrd Mat Sub Mat Fac Maximum Alert Level . | . . . . . Low Security (%) 100 | 100 100 . 100 100 Level 1 . | . . . . . Level 2 . | . . . . . Level 3 . | . . . . . Level 4 . | . . . . . Level 5 . | . . . . . High Security . | . . . . . Max Security . | . . . . . Peak Influence 76 | . 56 . 75 76 Initial 4 | . . . . 4 Average 16 | . 16 . 19 16 Influence Increases 589 | . 154 . 189 246 Destroy 0b10 Robot/C 300 | . 100 . 100 100 Destroy 0b10 Robot/NC 45 | . . . 10 35 Destroy Leader 104 | . 30 . 32 42 Successful Hack 13 | . 6 . . 7 Disable Machine 45 | . . . 30 15 Destroy Structure 37 | . 3 . 2 32 Lose Combat Pursuer 45 | . 15 . 15 15 Influence Decreases 589 | . 154 . 178 257 Entered New Map 7 | . . . . 7 Time Decay 471 | . 124 . 178 169 Lost Part 111 | . 30 . . 81 Squads Dispatched 7 | . 1 . 2 4 Investigation 1 | . . . . 1 Extermination 2 | . . . . 2 Reinforcement 3 | . 1 . 1 1 Assault . | . . . . . Garrison 1 | . . . 1 . Intercept . | . . . . . Searches Triggered . | . . . . . Construction Impeded . | . . . . . Haulers Reinforced . | . . . . . Active Scanning Responses . | . . . . . Cargo Convoy Interrupts . | . . . . . Stealth | -11 -10 -10 -8 -7 --------- Run | Yrd Mat Sub Mat Fac Distress Signals 2 | . . . 1 1 Communications Jammed . | . . . . . Distress Signals . | . . . . . Times Spotted 43 | . 9 5 9 20 Peak Tracking Total 6 | . 3 2 2 6 Tactical Retreats 3 | . 1 . 1 1 Traps | -11 -10 -10 -8 -7 ------- Run | Yrd Mat Sub Mat Fac Traps Triggered 1 | . . . . 1 Indirectly . | . . . . . Trap Hack Attempts . | . . . . . Triggered . | . . . . . Disarmed . | . . . . . Reprogrammed . | . . . . . Reused . | . . . . . Traps Extracted . | . . . . . Installed . | . . . . . Triggered . | . . . . . Machines | -11 -10 -10 -8 -7 ---------- Run | Yrd Mat Sub Mat Fac Machines Disabled 3 | . . . 2 1 Max in Single Turn 1 | . . . 1 1 Machines Repaired . | . . . . . Machines Dismantled . | . . . . . Machines Sabotaged . | . . . . . Overloaded Fab Kills . | . . . . . Hacking | -11 -10 -10 -8 -7 --------- Run | Yrd Mat Sub Mat Fac Machines Accessed 9 | . 1 . 3 5 Terminals 6 | . 1 . 1 4 Fabricators . | . . . . . Repair Stations . | . . . . . Recycling Units . | . . . . . Scanalyzers 2 | . . . 1 1 Garrison Access 1 | . . . 1 . Total Hacks 19 | . 2 . 6 11 Successful 9 | . 2 . 2 5 Failed 10 | . . . 4 6 Catastrophic 2 | . . . 2 . Database Lockouts . | . . . . . Manual 1 | . 1 . . . Terminals 11 | . 2 . 3 6 Fabricators . | . . . . . Repair Stations . | . . . . . Recycling Units . | . . . . . Scanalyzers 7 | . . . 2 5 Garrison Access 1 | . . . 1 . Terminal Hacks 4 | . 2 . . 2 Record 1 | . . . . 1 Part Schematic 1 | . . . . 1 Alert Level 1 | . 1 . . . Hauler Manifests 1 | . 1 . . . Fabricator Hacks . | . . . . . Repair Station Hacks . | . . . . . Recycling Unit Hacks . | . . . . . Scanalyzer 5 | . . . 2 3 Insert Component 3 | . . . 1 2 Analyze 2 | . . . 1 1 Garrison Access Hacks . | . . . . . Unauthorized Hacks . | . . . . . Terminals . | . . . . . Fabricators . | . . . . . Repair Stations . | . . . . . Recycling Units . | . . . . . Scanalyzers . | . . . . . Garrison Access . | . . . . . Data Cores Recovered . | . . . . . Used . | . . . . . Hacking Detections 9 | . 1 . 3 5 Full Trace Events 1 | . . . . 1 Feedback Events . | . . . . . Feedback Blocked . | . . . . . Robot Schematics Acquired . | . . . . . Robots Built . | . . . . . Authchips . | . . . . . Time . | . . . . . Total Robot Build Rating . | . . . . . Part Schematics Acquired 3 | . . . 1 2 Parts Built . | . . . . . Authchips . | . . . . . Time . | . . . . . Total Part Build Rating . | . . . . . Parts Repaired . | . . . . . Time . | . . . . . Parts Recycled . | . . . . . Recycled Matter . | . . . . . Retrieved Matter . | . . . . . Retrieved Components . | . . . . . Parts Scanalyzed 3 | . . . 1 2 Part Schematics Acquired 2 | . . . 1 1 Parts Damaged . | . . . . . Bothacking | -11 -10 -10 -8 -7 ------------ Run | Yrd Mat Sub Mat Fac Used RIF Installer . | . . . . . Robots Hacked . | . . . . . Non-combat . | . . . . . Combat . | . . . . . Robot Hacks Applied . | . . . . . Relay Couplers Released . | . . . . . Fabnet Peak Effective % . | . . . . . Robots Rewired . | . . . . . Allies Hacked . | . . . . . Hacks Repelled . | . . . . . Allies | -11 -10 -10 -8 -7 -------- Run | Yrd Mat Sub Mat Fac Total Allies . | . . . . . Largest Group . | . . . . . Highest-Rated Group . | . . . . . Highest-Rated Ally . | . . . . . Total Orders . | . . . . . Ally Attacks . | . . . . . Total Damage . | . . . . . Kills . | . . . . . Allies Corrupted . | . . . . . Allies Melted . | . . . . . Intel | -11 -10 -10 -8 -7 ------- Run | Yrd Mat Sub Mat Fac Active Infowar (turns) 1572 | . 198 281 483 610 Sensors 1054 | . . . 446 608 Structural 1528 | . 198 281 483 566 Jamming 2 | . . . . 2 ECM 1 | . . . . 1 Robot Analysis Total . | . . . . . Derelict Logs Recovered 1 | . . 1 . . Drone Launches . | . . . . . Drone Recoveries . | . . . . . Exploration | -11 -10 -10 -8 -7 ------------- Run | Yrd Mat Sub Mat Fac Turns Passed 2210 | 72 393 340 483 922 Spaces Moved 1318 | 46 216 246 296 514 Core 114 | 3 . . . 111 Treads . | . . . . . Legs 1155 | 43 216 246 296 354 Wheels . | . . . . . Hover 45 | . . . . 45 Flight 4 | . . . . 4 Fastest Speed 50 | 50 120 120 120 50 Average Speed 122 | 115 121 120 120 125 Slowest Speed 500 | 120 190 120 120 500 Overloaded Moves . | . . . . . Propulsion Burnouts . | . . . . . Robots Hopped . | . . . . . Potential Cave-ins . | . . . . . Cave-ins Triggered . | . . . . . Exploration Rate (%) 18 | 3 36 12 25 17 Regions Visited 4 Branch Regions 1 Pre-discovered Areas . | . . . . . Known Exits Taken 1 | . . . 1 . Unknown Exits Taken 3 | 1 1 1 . . Scrap Searched 4 | . . 4 . . Spaces Dug 13 | . . . . 13 Terrain Destroyed 38 | . 2 . 2 34 Melee . | . . . . . Projectile 4 | . 2 . 2 . AOE 34 | . . . . 34 Terrain Rammed . | . . . . . Walls Destroyed . | . . . . . Machines Disabled . | . . . . . Actions | -11 -10 -10 -8 -7 --------- Run | Yrd Mat Sub Mat Fac Total 1710 | 64 293 271 383 699 Wait 167 | . 30 2 31 104 Move 1314 | 45 215 245 295 514 Hop . | . . . . . Pick Up 46 | 12 8 3 13 10 Fast Attach 10 | . 2 4 . 4 Attach 28 | 6 3 . 4 15 Detach . | . . . . . Swap 9 | 1 3 . 4 1 Drop 25 | . 7 6 10 2 Fire 107 | . 25 11 26 45 Melee . | . . . . . Ram 4 | . . . . 4 Kick . | . . . . . Crush . | . . . . . Escape Stasis . | . . . . . Rewire . | . . . . . Trap . | . . . . . Miscellaneous . | . . . . . Route ------- -11/Scrapyard -10/Materials (discovered 2 exits: [*Mat] / [*Sub]) -10/Subcaves -8/Materials (discovered 2 exits: *Fac x2) -7/Factory History --------- Turn | Location | Event 21 | -11/Scrapyard | Discovered new exit (range 16) 73 | -11/Scrapyard | Entered Materials 173 | -10/Materials | Discovered new exit (range 10) 315 | -10/Materials | Build established: Mutant 362 | -10/Materials | Lost 3 parts (1n1u1w) 385 | -10/Materials | Discovered new exit (range 11) 466 | -10/Materials | Entered Subcaves 467 | -10/Subcaves | Approached by a straggling Scientist 508 | -10/Subcaves | Core integrity fell below 50% 665 | -10/Subcaves | Learned location of 1 exit from Materials 674 | -10/Subcaves | A swath of the cavern ceiling suddenly collapsed 793 | -10/Subcaves | Discovered new exit (range 11) 806 | -10/Subcaves | Entered Materials 806 | -8/Materials | Evolved 4 slots: Propulsion x2, Utility x2 807 | -8/Materials | Identified exit to Factory 1129 | -8/Materials | Build established: Skirmisher 1158 | -8/Materials | Discovered exit to Factory (range 15) 1237 | -8/Materials | Garrison activated, responded to threat 1289 | -8/Materials | Entered Factory 1289 | -7/Factory | Evolved 2 slots: Utility x2 1685 | -7/Factory | Build established: Infiltrator-Skirmisher 1928 | -7/Factory | Lost 3 parts (2n1u) 2018 | -7/Factory | Lost 10 parts (1p2n3u4w) 2057 | -7/Factory | Core integrity fell below 50% 2105 | -7/Factory | Lost 7 parts (2p1n2u2w) 2153 | -7/Factory | Core integrity fell below 20% 2211 | -7/Factory | Destroyed by P-60 Hacker with Shock Rifle Last Messages --------------- 02167_ Remote Datajack destroyed. 02167_ U-05 Engineer repairs door. 02168_ U-05 Engineer builds a Wall. 02172_ U-05 Engineer builds a Door. 02176_ U-05 Engineer builds a Wall. 02176_ P-60 Hacker resets Y-54 Guardian, system corruption cleaned. 02178_ U-05 Engineer lays Concrete. 02180_ U-05 Engineer builds a Wall. 02181_ U-05 Engineer lays Concrete. 02183_ U-05 Engineer builds a Wall. 02184_ Med. Storage Unit destroyed. 02184_ Adv. EMP Blaster destroyed. 02184_ Destroyed Adv. EMP Blaster. 02185_ U-05 Engineer lays Concrete. 02196_ System corrupted: Substantial component data lost. 02198_ K-01 Serf cleans the Megafabricator. 02208_ Acquired Plasma Cannon. [Achievement: Just Browsing] Map ----- +----------------------------------------------------+ | | | | | | | | | | | | | | | | | | | | | | | | | | | | | | | | | | | | | ?????????????????????????????????????????????????? | | ?????????????????????????????????????????????????? | | ?????????????????????????????????????????????????? | | ??????????????????##############?????????????????? | | ??????????????????+ ] ??????????????????? | | ??????????????????# #???????????????????? | | ??????????????????# """ #???????????????????? | | ??????????????????# """ @ #???????????????????? | | ??????????????????# """ #???????????????????? | | ??????????????????# ###?????????????????? | | ??????????????????# ##+#######????????? | | ??????????????????# ???????? | | ??????????????##### ???????? | | ??????????????# ???????? | | ???????????#### ???????? | | ??????????? ???????? | | ??????????? k ???????? | | ?????????? """ """""""""????????? | | ???########## p""" """"""???????????? | | ??# # """ """"?????????????? | | ?# # """"?????????????? | | # # """"?????????????? | | / # """""""""????????? | | # # ???????? | | # # ???????? | | # ]#### ##????????? | | # = ##?# #?????????? | | # = !%=##?# ############### #?????????? | | #######+# #?# #?????????????? #?????????? | | #??# # ##### #??????????????? +?????????? | | #??#### #???????????????? ??????????? | | #######+### #?????????????????????????????? | +----------------------------------------------------+ Best States ------------- Heat Dissipation 34 Energy Generation 15 Energy Capacity 250 Matter Stores 300 Matter Capacity 300 Sight Range 16 Robot Scan Range 15 Terrain Scan Density 10 Additional Mass Support 9 Corruption Block 8 Evasion (%) 55 Item Schematics ----------------- Cesium-ion Thruster | -8/Materials | Scanalyzed Adv. Weight Redist. System | -7/Factory | Scanalyzed EM Shield | -7/Factory | Hacked Robot Schematics ------------------ None Fabricated ------------ Nothing Repaired ---------- Nothing Alien Tech Used ----------------- None Achievements -------------- Just Browsing Challenges ------------ None Game ------ Seed HardenedShockSlayer Manual? 0 Play Time 00:47:06 Cumulative 28.8 hours Start 2025.08.27 @ 11:02:01 End 2025.09.21 @ 09:01:32 Sessions 3 Manual Loads 0 Difficulty Rogue Special Mode None Game No. 30 Rogue 30 Adventurer 0 Explorer 0 Win Type - Total 0 Types 0/0/0/0/0/0/0/0/0/0 Lore% 18 Gallery% 25 Achievement% 20 Wizard Run 0 Options --------- Layout 1 ASCII 0 Keyboard 0 Movement Mouse Keybinds 0 Fullscreen 1 Font 16/SmallcapsGlow Map View 55x38 Zoom Use 0% Tactical HUD 1 Map Filters NONE Filters NONE Steam 1 RUN: 9e19d6b2-7f00-4542-b953-a55394b25223